Workbook

Sheet Sheet1 (hidden)
G1: технологическая карта | N1: изд | O1: 1 | R1: партия | S1: 4-21
J2: август | L2: 2021
B3: коэф | C3: Ф. И. О. | D3: р/р | E3: 2 | F3: 3 | G3: 4 | H3: 5 | I3: 6 | J3: 9 | K3: 10 | L3: 11 | M3: 12 | N3: 13 | O3: 16 | P3: 17 | Q3: 18 | R3: 19 | S3: 20 | T3: 23 | U3: 24 | V3: 25 | W3: 26 | X3: 27 | Y3: 30 | Z3: 31
C4: работник6 | D4: 3/16 | I4: 1 | L4: 1 | M4: 4 | N4: 3.2 | O4: 2 | P4: 1.2 | AA4: =SUM(E4:Z4) -> 12.4
C5: работник7 | K5: 7.2 | AA5: 7.2
C6: работник1 | E6: 6.7 | I6: 4.7 | O6: 6.7 | P6: 2 | AA6: 20.1
C7: работник8 | E7: 7.2 | G7: 7.2 | H7: 5 | I7: 4.2 | J7: 7.2 | K7: 7.2 | L7: 6.2 | AA7: 44.2
C8: работник9 | E8: 7.2 | F8: 7.2 | AA8: 14.4
C9: работник3 | F9: 2.6 | H9: 7.2 | K9: 7.2 | AA9: 17
C10: работник10 | H10: 7.2 | I10: 7.2 | J10: 4 | K10: 4 | L10: 2 | AA10: 24.4
C11: работник10 | L11: 7.2 | M11: 7.2 | N11: 7.2 | O11: 7.2 | AA11: 28.8
C12: работник5 | K12: 4 | M12: 4 | AA12: 8
C13: работник11 | J13: 7.2 | K13: 7.2 | M13: 7.2 | AA13: 21.6
C14: работник2 | H14: 2.2 | AA14: 2.2
C15: работник4 | E15: 7.2 | F15: 7.2 | AA15: 14.4
B17: 1.1 | C17: работник5 | D17: 3/16 | E17: 7.2 | AA17: 7.2
B18: 1.1 | C18: работник2 | G18: 2 | AA18: 2
E19: =SUM(E4:E18) -> 35.5 | F19: 17 | G19: 9.2 | H19: 21.6 | I19: 17.1 | J19: 18.4 | K19: 36.8 | L19: 16.4 | M19: 22.4 | N19: 10.4 | O19: 15.9 | P19: 3.2 | Q19: 0 | R19: 0 | S19: 0 | T19: 0 | U19: 0 | V19: 0 | W19: 0 | X19: 0 | Y19: 0 | Z19: 0 | AA19: 223.9
G22: технологическая карта | N22: изд | O22: 2 | R22: партия | S22: 33-21
J23: август | L23: 2021
B24: коэф | C24: Ф. И. О. | D24: р/р | E24: 2 | F24: 3 | G24: 4 | H24: 5 | I24: 6 | J24: 9 | K24: 10 | L24: 11 | M24: 12 | N24: 13 | O24: 16 | P24: 17 | Q24: 18 | R24: 19 | S24: 20 | T24: 23 | U24: 24 | V24: 25 | W24: 26 | X24: 27 | Y24: 30 | Z24: 31
C25: работник6 | D25: 3/16 | M25: 2 | N25: 4 | AA25: =SUM(E25:Z25) -> 6
C26: работник10 | N26: 7.2 | O26: 7.2 | AA26: 14.4
C27: работник11 | L27: 7.2 | AA27: 7.2
C28: работник3 | E28: 3.2 | F28: 4.6 | G28: 2.8 | AA28: =SUM(E28:Z28) -> 10.6
C29: работник8 | S29: 7.2 | AA29: 7.2
C30: работник9 | G30: 7.2 | H30: 7.2 | I30: 7.2 | J30: 7.2 | K30: 7.2 | AA30: 36
E31: =SUM(E25:E30) -> 3.2 | F31: 4.6 | G31: 10 | H31: 7.2 | I31: 7.2 | J31: 7.2 | K31: 7.2 | L31: 7.2 | M31: 2 | N31: 11.2 | O31: 7.2 | P31: 0 | Q31: 0 | R31: 0 | S31: 7.2 | T31: 0 | U31: 0 | V31: 0 | W31: 0 | X31: 0 | Y31: 0 | Z31: 0 | AA31: =SUM(AA25:AA30) -> 81.4
G33: технологическая карта | N33: изд | O33: 3 | R33: партия | S33: 27-21
J34: август | L34: 2021
B35: коэф | C35: Ф. И. О. | D35: р/р | E35: 2 | F35: 3 | G35: 4 | H35: 5 | I35: 6 | J35: 9 | K35: 10 | L35: 11 | M35: 12 | N35: 13 | O35: 16 | P35: 17 | Q35: 18 | R35: 19 | S35: 20 | T35: 23 | U35: 24 | V35: 25 | W35: 26 | X35: 27 | Y35: 30 | Z35: 31
C36: работник3 | D36: 2/4 | I36: 2.8 | AA36: =SUM(E36:Z36) -> 2.8
C37: работник7 | Q37: 7.2 | AA37: =SUM(E37:Z37) -> 7.2
C39: работник7 | D39: 3/4 | E39: 3.2 | AA39: =SUM(E39:Z39) -> 3.2
C40: работник12 | E40: 4 | F40: 4 | G40: 4 | H40: 4 | N40: 7 | AA40: =SUM(E40:Z40) -> 23
C41: работник2 | J41: 4.2 | Q41: 2.2 | S41: 7.2 | U41: 7.2 | W41: 3.6 | AA41: =SUM(E41:Z41) -> 24.4
C42: работник13 | P42: 1.2 | AA42: 1.2
C44: работник2 | D44: 3/16 | T44: 1.8 | W44: 3.6 | X44: 7.2 | AA44: 12.6
C45: работник1 | P45: 4.7 | Q45: 6.7 | R45: 2 | U45: 3 | X45: 5.7 | Y45: 6.7 | Z45: 6.7 | AA45: 35.5
C46: работник10 | E46: 7.2 | F46: 7.2 | G46: 7.2 | P46: 7.2 | Q46: 7.2 | AA46: 36
C47: работник11 | F47: 7.2 | H47: 7.2 | I47: 7.2 | O47: 7.2 | P47: 7.2 | U47: 7.2 | V47: 7.2 | AA47: 50.4
C48: работник9 | L48: 7.2 | M48: 7.2 | N48: 7.2 | O48: 7.2 | P48: 7.2 | Q48: 7.2 | R48: 7.2 | S48: 7.2 | AA48: 57.6
C49: работник3 | E49: 4 | AA49: 4
C50: работник12 | E50: 3 | F50: 3 | G50: 3 | H50: 3 | K50: 3 | L50: 3 | AA50: 18
C51: работник5 | K51: 2.2 | M51: 2.2 | O51: 4.2 | S51: 3.2 | AA51: 11.8
C52: работник13 | N52: 7.2 | O52: 7.2 | P52: 6 | AA52: 20.4
C53: работник14 | R53: 6.7 | S53: 6.7 | AA53: 13.4
C54: работник15 | E54: 7.2 | AA54: 7.2
C55: работник6 | F55: 7.2 | H55: 7.2 | I55: 2 | Q55: 2 | AA55: 18.4
C56: работник4 | Y56: 7.2 | Z56: 7.2 | AA56: 14.4
B58: 1.5 | C58: работник7 | D58: 4/8 | E58: 4 | F58: 7.2 | G58: 7.2 | H58: 7.2 | I58: 7.2 | R58: 7.2 | S58: 7.2 | AA58: 47.2
B60: 1.1 | C60: работник5 | D60: 3/16 | J60: 4.2 | L60: 4.2 | AA60: 8.4
B61: 1.1 | C61: работник2 | G61: 5.2 | V61: 7.2 | AA61: 12.4
B62: 1.1 | C62: работник11 | E62: 7.2 | G62: 7.2 | AA62: 14.4
E63: =SUM(E36:E62) -> 39.8 | F63: =SUM(F36:F62) -> 35.8 | G63: 33.8 | H63: 28.6 | I63: 19.2 | J63: 8.4 | K63: 5.2 | L63: 14.4 | M63: 9.4 | N63: 21.4 | O63: 25.8 | P63: 33.5 | Q63: 32.5 | R63: 23.1 | S63: 31.5 | T63: 1.8 | U63: 17.4 | V63: 14.4 | W63: 7.2 | X63: 12.9 | Y63: 13.9 | Z63: 13.9 | AA63: =SUM(AA36:AA62) -> 443.9

Sheet Data_Tech
A1: месяц | B1: год | C1: изд | D1: партия | E1: коэф | F1: Ф. И. О. | G1: р/р | H1: 2 | I1: 3 | J1: 4 | K1: 5 | L1: 6 | M1: 9 | N1: 10 | O1: 11 | P1: 12 | Q1: 13 | R1: 16 | S1: 17 | T1: 18 | U1: 19 | V1: 20 | W1: 23 | X1: 24 | Y1: 25 | Z1: 26 | AA1: 27 | AB1: 30 | AC1: 31
A2: Январь | B2: 2021 | C2: 1 | D2: 1-21 | E2: 1 | F2: работник1 | G2: 3/16 | I2: 7,2
A3: Январь | B3: 2021 | C3: 2 | D3: 1-21 | E3: 1.5 | F3: работник2 | G3: 3/16 | H3: 5
A4: Январь | B4: 2021 | C4: 1 | D4: 4-21 | E4: 1 | F4: работник3 | G4: 2/4 | H4: 5,2
A5: Январь | B5: 2021 | C5: 1 | D5: 1-21 | E5: 1.1 | F5: работник3 | G5: 3/16 | H5: 6,7
A6: Январь | B6: 2021 | C6: 2 | D6: 1-21 | E6: 1 | F6: работник4 | G6: 3/16 | N6: 7,2
A7: Январь | B7: 2021 | C7: 2 | D7: 1-21 | E7: 1 | F7: работник4 | G7: 3/4 | K7: 7,2
A8: Январь | B8: 2021 | C8: 1 | D8: 1-21 | E8: 1 | F8: работник8 | G8: 3/4 | U8: 7
A9: Январь | B9: 2021 | C9: 1 | D9: 1-21 | E9: 1 | F9: работник3 | G9: 2/4 | L9: 2.8
A10: Январь | B10: 2021 | C10: 2 | D10: 1-21 | E10: 1 | F10: работник7 | G10: 2/4 | T10: 7.2
A11: Январь | B11: 2022 | C11: 3 | D11: 1-22 | E11: 1 | F11: работник7 | G11: 3/4 | H11: 3.2
A12: Январь | B12: 2021 | C12: 1 | D12: 1-21 | E12: 1 | F12: работник12 | G12: 3/4 | H12: 4 | I12: 4 | J12: 4 | K12: 4 | Q12: 7
A13: Январь | B13: 2021 | C13: 1 | D13: 1-21 | E13: 1 | F13: работник2 | G13: 3/4 | M13: 4.2 | T13: 2.2 | V13: 7.2 | X13: 7.2 | Z13: 3.6
A14: Ноябрь | B14: 2021 | C14: 1 | D14: 1-21 | E14: 1 | F14: работник13 | G14: 3/4 | S14: 1.2
A15: Январь | B15: 2021 | C15: 1 | D15: 1-21 | E15: 1 | F15: работник2 | G15: 3/16 | W15: 1.8 | Z15: 3.6 | AA15: 7.2
A16: Январь | B16: 2021 | C16: 1 | D16: 1-21 | E16: 1 | F16: работник1 | G16: 3/16 | S16: 4.7 | T16: 6.7 | U16: 2 | X16: 3 | AA16: 5.7 | AB16: 6.7 | AC16: 6.7
A17: Январь | B17: 2021 | C17: 1 | D17: 1-21 | E17: 1 | F17: работник10 | G17: 3/16 | H17: 7.2 | I17: 7.2 | J17: 7.2 | S17: 7.2 | T17: 7.2
A18: Январь | B18: 2021 | C18: 1 | D18: 1-21 | E18: 1 | F18: работник11 | G18: 3/16 | I18: 7.2 | K18: 7.2 | L18: 7.2 | R18: 7.2 | S18: 7.2 | X18: 7.2 | Y18: 7.2
A19: Январь | B19: 2021 | C19: 1 | D19: 1-21 | E19: 1 | F19: работник9 | G19: 3/16 | O19: 7.2 | P19: 7.2 | Q19: 7.2 | R19: 7.2 | S19: 7.2 | T19: 7.2 | U19: 7.2 | V19: 7.2
A20: Январь | B20: 2022 | C20: 2 | D20: 1-22 | E20: 1.1 | F20: работник3 | G20: 3/16 | H20: 4
A21: Январь | B21: 2022 | C21: 2 | D21: 1-22 | E21: 1.5 | F21: работник12 | G21: 3/16 | H21: 3 | I21: 3 | J21: 3 | K21: 3 | N21: 3 | O21: 3
A22: Январь | B22: 2022 | C22: 2 | D22: 1-22 | E22: 1 | F22: работник5 | G22: 3/16 | N22: 2.2 | P22: 2.2 | R22: 4.2 | V22: 3.2
A23: Январь | B23: 2022 | C23: 3 | D23: 1-22 | E23: 1 | F23: работник13 | G23: 3/16 | Q23: 7.2 | R23: 7.2 | S23: 6
A24: Январь | B24: 2022 | C24: 2 | D24: 1-22 | E24: 1 | F24: работник14 | G24: 3/16 | U24: 6.7 | V24: 6.7
A25: Январь | B25: 2021 | C25: 2 | D25: 1-21 | E25: 1 | F25: работник15 | G25: 3/16 | H25: 7.2
A26: Январь | B26: 2021 | C26: 2 | D26: 1-21 | E26: 1 | F26: работник6 | G26: 3/16 | I26: 7.2 | K26: 7.2 | L26: 2 | T26: 2
A27: Январь | B27: 2021 | C27: 2 | D27: 1-21 | E27: 1 | F27: работник4 | G27: 3/4 | AB27: 7.2 | AC27: 7.2
A28: Январь | B28: 2021 | C28: 2 | D28: 1-21 | E28: 1.5 | F28: работник7 | G28: 4/8 | H28: 4 | I28: 7.2 | J28: 7.2 | K28: 7.2 | L28: 7.2 | U28: 7.2 | V28: 7.2
A29: Январь | B29: 2021 | C29: 2 | D29: 1-21 | E29: 1.1 | F29: работник5 | G29: 3/16 | M29: 4.2 | O29: 4.2
A30: Январь | B30: 2021 | C30: 1 | D30: 1-21 | E30: 1.1 | F30: работник2 | G30: 3/16 | J30: 5.2 | Y30: 7.2
A31: Январь | B31: 2022 | C31: 2 | D31: 1-22 | E31: 1.1 | F31: работник11 | G31: 3/16 | H31: 7.2 | J31: 7.2
A32: Январь | B32: 2021 | C32: 5 | D32: 4-21 | E32: 5 | F32: работник1 | G32: 3/16 | K32: 5
A33: Январь | B33: 2021 | C33: 6 | D33: 4-21 | E33: 6 | F33: работник1 | G33: 3/16 | L33: 6

Sheet база (hidden)
A1: партия | B1: Ф. И. О. | C1: р/р
A2: 4-21 | B2: работник1 | C2: 3/16
A3: 33-21 | B3: работник2 | C3: 2/4
A4: 27-21 | B4: работник3 | C4: 3/4
A5: 1-21 | B5: работник4 | C5: 4/8
A6: 2-21 | B6: работник5
A7: 1-22 | B7: работник6
B8: работник7
B9: работник8
B10: работник9
B11: работник10
B12: работник11
B13: работник12
B14: работник13
B15: работник14
B16: работник15

Sheet Лист1
G1: технологическая карта | N1: изд | O1: 1 | R1: партия | S1: 1-21
J2: Январь | L2: 2021
B3: коэф | C3: Ф. И. О. | D3: р/р | E3: 2 | F3: 3 | G3: 4 | H3: 5 | I3: 6 | J3: 9 | K3: 10 | L3: 11 | M3: 12 | N3: 13 | O3: 16 | P3: 17 | Q3: 18 | R3: 19 | S3: 20 | T3: 23 | U3: 24 | V3: 25 | W3: 26 | X3: 27 | Y3: 30 | Z3: 31
